bitfinex-derivatives/quotes_SOLF0:USTF0_20220109
["timestamp","ask_amount","ask_price","bid_price","bid_amount"]
[1641756429410,14.35463454,144.94,144.84,10.60852778]
[1641756429712,14.35463454,144.94,144.84,6.72]
[1641756429909,14.35463454,144.94,144.84,10.72]
[1641756430110,14.35463454,144.94,144.86,27.66479]
[1641756430316,14.35463454,144.95,144.86,27.66479]
[1641756431111,170.24112454,144.96,144.86,27.66479]
[1641756431511,105.59902454,144.96,144.86,27.66479]
[1641756433211,105.59902454,144.96,144.87,1.725]
[1641756433412,105.59902454,144.96,144.87,9.287]
[1641756433814,42.01942454,144.96,144.88,4.0]
[1641756434015,14.35463454,144.97,144.91,27.66479]
[1641756434217,14.35463454,144.97,144.91,35.82679]
[1641756434814,14.35463454,144.97,144.91,8.162]
[1641756435017,5.51910863,144.96,144.88,1.725]
[1641756435216,9.51910863,144.96,144.86,27.66479]
[1641756435415,5.51984638,144.94,144.86,27.66479]
[1641756435616,12.94284638,144.94,144.86,27.66479]
[1641756436417,27.29748092,144.94,144.86,27.66479]
[1641756436818,31.29748092,144.94,144.85,3.920252]
[1641756437015,27.29748092,144.94,144.85,3.920252]
[1641756437817,31.29748092,144.94,144.84,27.66479]
[1641756438917,14.35463454,144.93,144.84,27.66479]
[1641756439318,5.52041345,144.92,144.84,27.66479]
[1641756439520,5.52041345,144.92,144.87,3.92049022]
[1641756439718,19.87504799,144.92,144.87,10.65749022]
[1641756440724,5.52041345,144.92,144.87,10.65749022]
[1641756440920,9.52041345,144.92,144.87,10.65749022]
[1641756441321,5.52041345,144.92,144.87,10.65749022]
[1641756442920,9.52041345,144.92,144.87,10.65749022]
[1641756443120,5.52041345,144.92,144.87,10.65749022]
[1641756443721,5.52041345,144.92,144.87,6.737]
[1641756444525,15.04106042,144.92,144.88,3.92022346]
[1641756444723,4.0,144.91,144.88,3.92022346]
[1641756445023,5.898,144.97,144.9,4.0]
[1641756445223,58.7474515,145.0,144.91,1.724]
[1641756445423,2.77674853,144.91,144.9,12.082]
[1641756445624,4.0,144.97,144.9,8.082]
[1641756445923,4.0,144.93,144.9,6.358]
[1641756446124,66.1784,144.99,144.92,27.66479]
[1641756446323,4.0,144.93,144.91,27.66479]
[1641756446526,4.0,144.92,144.88,3.92022346]
[1641756446725,4.0,144.9,144.88,3.92022346]
[1641756446925,4.0,144.9,144.8,8.62774039]
[1641756446926,6.90274039,144.96,144.8,6.90274039]
[1641756447126,4.0,144.93,144.8,14.09674039]
[1641756447325,64.1716,144.97,144.82,6.90178756]
[1641756447527,4.0,144.9,144.82,6.90178756]
[1641756447725,4.0,144.9,144.79,8.6282169]
[1641756448125,27.66479,144.88,144.81,27.66479]
[1641756448425,4.0,144.9,144.81,27.66479]
[1641756448626,4.0,144.94,144.81,27.66479]
[1641756448826,10.9032169,144.95,144.81,27.66479]
[1641756449026,4.0,144.95,144.89,3.91878389]
[1641756449226,4.0,144.94,144.89,11.80878389]
[1641756449426,4.0,144.93,144.89,11.80878389]
[1641756449627,4.0,144.92,144.89,11.80878389]
[1641756450026,4.0,144.93,144.89,11.80878389]
[1641756450329,6.39889369,144.94,144.89,11.80878389]
[1641756450526,9.5197963,144.94,144.89,11.80878389]
[1641756450928,4.0,144.93,144.89,11.80878389]
[1641756451728,5.5197963,144.94,144.89,11.80878389]
[1641756451928,6.62215498,144.97,144.89,11.80878389]
[1641756452228,6.62215498,144.97,144.9,27.66479]
[1641756452827,4.0,144.93,144.9,27.66479]
[1641756453227,5.5193234,144.95,144.9,27.66479]
[1641756453829,2.3986332,144.96,144.9,27.66479]
[1641756454229,4.0,144.93,144.9,27.66479]
[1641756454630,4.0,144.94,144.9,27.66479]
[1641756454831,4.0,144.93,144.9,27.66479]
[1641756455030,4.0,144.94,144.9,27.66479]
[1641756455230,4.0,144.93,144.9,27.66479]
[1641756456332,9.51975482,144.94,144.9,27.66479]
[1641756456534,9.51975482,144.94,144.9,35.12679]
[1641756457134,5.52058865,144.92,144.9,35.12679]
[1641756457535,5.52058865,144.92,144.91,3.91948894]
[1641756458337,9.52058865,144.92,144.91,3.91948894]
[1641756458537,5.52101788,144.91,144.84,27.66479]
[1641756458735,9.52177979,144.89,144.81,71.08406394]
[1641756458935,5.52177979,144.89,144.8,6.90274039]
[1641756459535,5.52177979,144.89,144.82,2.47939124]
[1641756460336,5.52177979,144.89,144.82,35.92579]
[1641756461539,5.52177979,144.89,144.83,2.47939124]
[1641756461738,5.522395,144.87,144.83,2.47939124]
[1641756462139,4.0,144.86,144.83,2.47939124]
[1641756463040,4.0,144.86,144.82,35.92579]
[1641756463441,9.5227382,144.86,144.82,35.92579]
[1641756463942,5.5227382,144.86,144.82,35.92579]
[1641756464141,9.5227382,144.86,144.82,35.92579]
[1641756464341,5.52313759,144.85,144.82,8.261]
[1641756465241,9.52313759,144.85,144.82,8.261]
[1641756465541,5.52313759,144.85,144.82,8.261]
[1641756465741,9.52313759,144.85,144.82,8.261]
[1641756465942,5.52313759,144.85,144.82,8.261]
[1641756467647,5.52313759,144.85,144.83,3.92093534]
[1641756468246,6.62536386,144.9,144.84,55.32958]
[1641756468446,6.62536386,144.9,144.84,59.32958]
[1641756469048,6.62536386,144.9,144.84,55.32958]
[1641756469249,6.62536386,144.9,144.85,2.47566625]
[1641756469447,6.62536386,144.9,144.85,10.82266625]
[1641756470049,6.62536386,144.9,144.85,8.347]
[1641756470249,6.62536386,144.9,144.87,27.66479]
[1641756472149,4.0,144.93,144.87,27.66479]
[1641756472351,9.51984888,144.94,144.9,27.66479]
[1641756472550,9.51984888,144.94,144.9,7.992]
[1641756473049,5.52049424,144.92,144.9,7.992]
[1641756473250,9.52049424,144.92,144.9,0.7878]
[1641756473450,5.52137067,144.9,144.84,3.54684376]
[1641756474252,5.52137067,144.9,144.85,27.66479]
[1641756474853,6.62427367,144.93,144.85,27.66479]
[1641756475553,6.62427367,144.93,144.85,36.64179]
[1641756476155,6.62427367,144.93,144.86,2.48089181]
[1641756477256,6.62427367,144.93,144.86,11.62589181]
[1641756478358,6.62427367,144.93,144.88,27.66479]
[1641756478961,5.52081769,144.91,144.88,27.66479]
[1641756479360,12.1433721,144.94,144.88,27.66479]
[1641756481563,2.39937606,144.93,144.88,27.66479]
[1641756481761,2.39937606,144.93,144.88,31.66479]
[1641756481966,2.39937606,144.93,144.91,4.0]
[1641756482162,2.39937606,144.93,144.91,6.373]
[1641756482363,14.6136946,144.96,144.92,27.66479]
[1641756482765,14.6136946,145.0,144.92,27.66479]
[1641756482963,5.51786669,144.99,144.92,27.66479]
[1641756483965,9.51786669,144.99,144.92,27.66479]
[1641756484566,20.13156129,144.99,144.92,27.66479]
[1641756485368,5.51786669,144.99,144.92,27.66479]
[1641756485566,9.51786669,144.99,144.92,27.66479]
[1641756485767,3.23985761,144.93,144.92,27.66479]
[1641756486167,3.23985761,144.93,144.92,31.58328329]
[1641756489668,5.51841105,144.97,144.92,31.58328329]
[1641756489867,5.51841105,144.97,144.92,38.99428329]
[1641756490070,9.51841105,144.97,144.92,38.99428329]
[1641756490270,9.51885421,144.96,144.92,38.99428329]
[1641756490473,5.51885421,144.96,144.92,35.07579]
[1641756490871,5.51885421,144.96,144.92,38.99433214]
[1641756492372,5.51885421,144.96,144.95,27.66479]
[1641756493574,15.03784117,144.96,144.95,27.66479]
[1641756493774,18.27714585,144.96,144.95,27.66479]
[1641756493974,5.51967323,144.94,144.92,31.58333214]
[1641756494274,12.75815889,144.96,144.92,31.58333214]
[1641756494474,4.0,144.93,144.92,3.91854214]
[1641756494674,4.0,144.93,144.86,9.145]
[1641756494874,4.0,144.92,144.86,9.145]
[1641756495478,6.62515786,144.91,144.86,9.145]
[1641756495675,4.0,144.89,144.86,9.145]
[1641756496075,6.62515786,144.91,144.86,9.145]
[1641756496678,4.62515786,144.91,144.86,9.145]
[1641756496879,27.66479,144.92,144.86,9.145]
[1641756497079,31.66479,144.92,144.86,9.145]
[1641756497480,27.66479,144.94,144.86,9.145]
[1641756498281,4.0,144.92,144.86,9.145]
[1641756498681,4.0,144.91,144.86,9.145]
[1641756499582,5.52136009,144.9,144.86,9.145]
[1641756502884,3.63229347,144.91,144.86,9.145]
[1641756504582,3.63229347,144.91,144.85,27.66479]
[1641756506584,5.52053085,144.92,144.85,27.66479]
[1641756506784,3.91993534,144.89,144.85,27.66479]
[1641756510387,3.91993534,144.89,144.86,3.42376237]
[1641756510788,4.0,144.89,144.86,3.42376237]
[1641756510991,3.91967641,144.88,144.86,3.42376237]
[1641756512792,3.91967641,144.88,144.86,7.42376237]
[1641756512993,3.91967641,144.88,144.86,3.42376237]
[1641756513595,6.62431976,144.93,144.86,3.42376237]
[1641756513794,6.62431976,144.93,144.86,12.15776237]
[1641756514092,14.6136946,144.96,144.86,16.15776237]
[1641756514495,14.6136946,144.96,144.86,12.15824982]
[1641756514694,86.04233753,144.97,144.88,27.66479]
[1641756515494,71.42864293,144.97,144.88,27.66479]
[1641756516096,4.0,144.96,144.88,27.66479]
[1641756516296,5.51936515,144.95,144.86,39.82303982]
[1641756516496,5.51936515,144.95,144.86,54.43673442]
[1641756517098,5.51936515,144.95,144.86,39.82303982]
[1641756517798,9.51936515,144.95,144.86,39.82303982]
[1641756518600,9.51936515,144.95,144.86,36.39879]
[1641756518800,9.51936515,144.95,144.89,3.9191029]
[1641756519001,9.51936515,144.95,144.89,10.2651029]
[1641756521000,5.51936515,144.95,144.89,10.2651029]
[1641756521401,9.51936515,144.95,144.89,10.2651029]
[1641756521600,5.51936515,144.95,144.89,10.2651029]
[1641756522703,5.51936515,144.95,144.89,6.346]
[1641756522904,2.40149692,144.94,144.89,6.346]
[1641756523104,2.40149692,144.94,144.9,3.81558139]
[1641756524705,30.06628692,144.94,144.9,3.81558139]
[1641756525204,2.40149692,144.94,144.9,3.81558139]
[1641756525404,2.40149692,144.94,144.9,10.56858139]
[1641756525804,2.40149692,144.93,144.9,10.56858139]
[1641756526506,2.40149692,144.94,144.9,10.56858139]
[1641756527104,2.40149692,144.94,144.9,10.753]
[1641756527307,0.78559692,144.94,144.9,10.753]
[1641756527506,0.78559692,144.94,144.91,7.91923536]
[1641756527906,14.6136946,144.95,144.91,7.91923536]
[1641756528107,14.6136946,144.99,144.91,7.91923536]
[1641756528307,14.6136946,144.99,144.91,3.91923536]
[1641756528707,14.6136946,144.99,144.92,27.66479]
[1641756529309,71.9573,145.0,144.92,27.66479]
[1641756529508,50.22290575,145.01,144.92,27.66479]
[1641756529708,14.6136946,145.01,144.96,4.0]
[1641756529907,14.6136946,145.01,144.95,4.0]
[1641756530108,14.6136946,145.01,144.96,4.0]
[1641756530308,14.6136946,145.04,144.96,4.0]
[1641756530711,14.6136946,145.04,144.99,27.66479]
[1641756531008,9.5823946,145.04,145.01,4.0]
[1641756531210,39.01138229,145.07,145.01,4.0]
[1641756531411,7.13586377,145.07,145.06,10.89013677]
[1641756531609,4.0,145.19,145.06,18.59513677]
[1641756531810,39.02214269,145.08,145.07,1.723]
[1641756532010,39.02214269,145.08,145.06,7.705]
[1641756532209,39.02214269,145.08,145.06,11.705]
[1641756532409,36.36214269,145.08,145.07,4.0]
[1641756532609,36.36214269,145.08,145.07,5.723]
[1641756532808,58.7474515,145.13,145.07,67.94200473]
[1641756533009,24.07684222,145.21,145.09,4.0]
[1641756533209,24.07684222,145.21,145.11,4.0]
[1641756533409,24.07684222,145.21,145.09,7.155]
[1641756533410,4.0,145.18,145.1,1.722]
[1641756533612,4.0,145.2,145.09,7.155]
[1641756533810,34.9679286,145.21,145.09,7.155]
[1641756534013,20.50427715,145.21,145.09,7.155]
[1641756534209,16.50427715,145.21,145.09,11.155]
[1641756534410,9.61319077,145.21,145.13,4.0]
[1641756534613,9.61319077,145.21,145.13,11.973]
[1641756534813,27.66479,145.22,145.13,35.63779]
[1641756535014,4.0,145.17,145.13,35.63779]
[1641756535213,4.0,145.21,145.13,35.63779]
[1641756535413,4.0,145.2,145.13,35.63779]
[1641756535613,4.0,145.21,145.13,35.63779]
[1641756536015,4.0,145.2,145.13,35.63779]
[1641756536215,13.56568718,145.21,145.13,35.63779]
[1641756536415,4.0,145.2,145.13,35.63779]
[1641756536814,4.0,145.2,145.13,7.973]
[1641756537315,4.0,145.21,145.13,7.973]
[1641756537917,4.0,145.2,145.13,7.973]
[1641756538715,34.55540154,145.22,145.13,7.973]
[1641756539916,34.55540154,145.22,145.1,33.38679]
[1641756540418,34.55540154,145.22,145.1,29.38679]
[1641756540620,38.55540154,145.22,145.1,29.38679]
[1641756540818,27.66479,145.19,145.1,29.38679]
[1641756541020,27.66479,145.19,145.1,27.66479]
[1641756541219,69.27443123,145.21,145.1,27.66479]
[1641756541621,4.0,145.16,145.1,27.66479]
[1641756541821,5.51158727,145.15,145.1,27.66479]
[1641756542221,138.86949994,145.21,145.1,31.66479]
[1641756542419,76.1815011,145.27,145.13,4.0]
[1641756542623,64.6135,145.26,145.14,1.721]
[1641756542820,64.6135,145.26,145.18,27.66479]
[1641756543020,64.6135,145.26,145.18,34.13979]
[1641756543222,58.7474515,145.28,145.18,34.13979]
[1641756543623,56.7474515,145.28,145.19,4.0]
[1641756543823,56.7474515,145.28,145.21,4.0]
[1641756544023,56.7474515,145.28,145.22,1.721]
[1641756544529,11.9268881,145.33,145.22,1.721]
[1641756544726,56.7474515,145.36,145.23,10.88231246]
[1641756544924,56.7474515,145.36,145.35,55.32958]
[1641756545125,56.7474515,145.36,145.35,63.11958]
[1641756545326,98.09334244,145.4,145.35,63.11958]
[1641756545525,14.31029791,145.43,145.35,63.11958]
[1641756546129,14.31029791,145.43,145.37,4.0]
[1641756546327,14.31029791,145.43,145.36,1.719]
[1641756546927,6.88041833,145.43,145.36,1.719]
[1641756547231,137.1182,145.49,145.36,1.719]
[1641756547232,6.87994496,145.44,145.36,1.719]
[1641756547433,6.87994496,145.44,145.35,35.45479]
[1641756547830,4.0,145.46,145.35,35.45479]
[1641756548230,137.1182,145.49,145.35,35.45479]
[1641756548430,137.1182,145.49,145.36,1.719]
[1641756548630,6.87710611,145.5,145.36,1.719]
[1641756548830,6.87710611,145.5,145.39,27.66479]
[1641756549031,4.0,145.46,145.39,27.66479]
[1641756549430,6.87781561,145.49,145.39,27.66479]
[1641756549630,4.0,145.5,145.35,35.45479]
[1641756549833,6.8797083,145.45,145.35,41.17379]
[1641756550030,6.8797083,145.45,145.32,143.03453123]
[1641756550031,6.88089176,145.42,145.33,1.719]
[1641756550232,6.88231246,145.39,145.33,1.719]
[1641756550431,4.0,145.39,145.3,1.719]
[1641756550633,6.88349682,145.37,145.27,4.0]
[1641756550831,6.88468158,145.34,145.27,27.66479]
[1641756551635,31.66479,145.35,145.25,27.66479]
[1641756552031,6.88539264,145.33,145.21,10.602]
[1641756552233,37.16898555,145.35,145.21,10.602]
[1641756552434,6.88657806,145.3,145.21,8.882]
[1641756552836,27.66479,145.29,145.21,36.54679]
[1641756553235,6.88491859,145.34,145.21,36.54679]
[1641756553437,6.88657806,145.3,145.21,8.882]
[1641756553634,12.39270756,145.3,145.21,8.882]
[1641756553836,6.88586676,145.32,145.21,8.882]
[1641756554235,27.66479,145.35,145.21,15.76502302]
[1641756554435,27.66479,145.35,145.22,1.72]
[1641756554836,27.66479,145.35,145.25,27.66479]
[1641756555637,27.66479,145.38,145.27,6.88041833]
[1641756555840,64.2238,145.41,145.28,1.72]
[1641756556039,64.2238,145.41,145.28,9.128]
[1641756556237,64.2238,145.41,145.28,7.408]
[1641756556840,91.88859,145.41,145.3,27.66479]
[1641756557643,27.66479,145.41,145.3,27.66479]
[1641756558441,66.2536,145.44,145.32,6.87805214]
[1641756558642,5.49882599,145.49,145.35,6.8766332]
[1641756558841,27.66479,145.48,145.36,27.66479]
[1641756559040,20.96634338,145.47,145.35,8.126]
[1641756560444,8.588,145.47,145.35,8.126]
[1641756560743,8.588,145.47,145.36,1.719]
[1641756560944,6.8797083,145.45,145.37,27.66479]
[1641756561347,15.46652524,145.47,145.37,27.66479]
[1641756561546,8.588,145.47,145.37,27.66479]
[1641756561744,27.66479,145.48,145.37,27.66479]
[1641756561944,3.23437681,145.4,145.37,34.5402412]
[1641756562344,7.681e-05,145.4,145.37,34.5402412]
[1641756562543,136.5912,145.5,145.37,34.5402412]
[1641756562747,14.35985033,145.51,145.4,6.87426961]
[1641756562945,27.66479,145.54,145.45,27.66479]
[1641756563246,27.66479,145.54,145.45,34.15779]
[1641756564146,77.5915,145.55,145.45,34.15779]
[1641756564347,77.5915,145.55,145.46,1.718]
[1641756564946,27.66479,145.56,145.49,27.66479]
[1641756565147,27.66479,145.56,145.49,8.565]
[1641756565548,6.8747422,145.55,145.45,27.66479]
[1641756565751,6.8747422,145.55,145.4,1.718]
[1641756565949,27.66479,145.56,145.4,1.718]
[1641756566149,6.87686965,145.51,145.38,1.718]
[1641756566349,3.23301794,145.39,145.38,1.718]
[1641756566549,3.23301794,145.39,145.35,1.719]
[1641756566948,27.66479,145.47,145.38,6.87497852]
[1641756567149,27.66479,145.47,145.37,27.66479]
[1641756567449,27.66479,145.47,145.38,1.719]
[1641756567649,27.66479,145.47,145.37,27.66479]
[1641756568049,34.54355182,145.47,145.35,27.66479]
[1641756568248,41.96055182,145.47,145.33,1.719]
[1641756568449,41.96055182,145.47,145.31,1.719]
[1641756568851,4.0,145.44,145.31,1.719]
[1641756569049,41.96055182,145.47,145.33,27.66479]
[1641756569050,69.5339,145.46,145.33,27.66479]
[1641756569250,27.66479,145.47,145.38,6.87521485]
[1641756569452,127.1368,145.52,145.38,6.87521485]
[1641756569651,145.49665033,145.52,145.38,8.59321485]
[1641756569851,4.0,145.51,145.38,8.59321485]
[1641756570051,4.0,145.5,145.37,1.718]
[1641756570252,5.49851325,145.5,145.34,12.59486965]
[1641756570652,4.0,145.47,145.34,8.59486965]
[1641756570856,9.49851325,145.5,145.34,8.59486965]
[1641756571052,27.66479,145.47,145.38,27.66479]
[1641756572554,6.87686965,145.51,145.38,31.66479]
[1641756572757,18.35985033,145.55,145.4,6.87426961]
[1641756572957,14.35985033,145.51,145.41,29.38279]
[1641756573154,14.35985033,145.51,145.41,27.66479]
[1641756573355,23.8578662,145.51,145.39,1.718]
[1641756573555,4.0,145.43,145.36,3.90691756]
[1641756573756,11.665,145.43,145.36,3.90691756]
[1641756574155,4.0,145.42,145.36,3.90691756]
[1641756574355,7.665,145.43,145.36,3.90691756]
[1641756574555,7.665,145.43,145.36,10.78307791]
[1641756574756,7.665,145.43,145.37,1.719]
[1641756574954,7.665,145.43,145.38,27.66479]
[1641756575358,7.665,145.43,145.36,27.66479]
[1641756575755,13.16615602,145.43,145.36,27.66479]
[1641756575955,13.16615602,145.43,145.35,6.8766332]
[1641756576156,7.665,145.43,145.34,4.0]
[1641756576359,7.665,145.43,145.35,4.0]
[1641756576557,7.665,145.43,145.36,1.719]
[1641756576757,7.665,145.43,145.36,8.59516035]
[1641756576958,7.665,145.43,145.42,27.66479]
[1641756578159,7.665,145.43,145.39,3.90597928]
[1641756578559,7.665,145.43,145.32,6.87805214]
[1641756578758,7.665,145.43,145.31,6.87828868]
[1641756578959,7.665,145.43,145.34,27.66479]
[1641756579560,11.665,145.43,145.34,27.66479]
[1641756579761,7.665,145.43,145.34,27.66479]
[1641756581163,7.665,145.43,145.34,47.66479]
[1641756581363,7.665,145.43,145.37,6.8754512]
[1641756581762,7.665,145.43,145.39,4.0]
[1641756581962,5.4494,145.43,145.4,6.87426961]
[1641756582163,1.26278624,145.43,145.42,6.87332463]
[1641756582862,1.26278624,145.43,145.38,5.50261561]
[1641756583062,1.26278624,145.43,145.42,55.32958]
[1641756584162,1.26278624,145.43,145.42,66.20266842]
[1641756584462,14.35985033,145.56,145.42,71.70365043]
[1641756584463,14.35985033,145.52,145.42,71.70365043]
[1641756584862,14.35985033,145.52,145.42,67.70365043]
[1641756585064,14.35985033,145.52,145.42,27.66479]
[1641756585265,5.49813735,145.51,145.43,2.46761288]
[1641756586067,5.49855002,145.5,145.43,2.46761288]
[1641756586268,4.0,145.49,145.42,27.66479]
[1641756586467,5.49855002,145.5,145.42,27.66479]
[1641756586468,7.87380448,145.5,145.42,27.66479]
[1641756586671,4.0,145.49,145.42,27.66479]
[1641756586872,9.49902085,145.49,145.42,27.66479]
[1641756587069,27.66479,145.46,145.39,27.66479]
[1641756587470,2.37525446,145.48,145.39,27.66479]
[1641756587674,2.37525446,145.48,145.42,6.87308842]
[1641756587873,2.37525446,145.48,145.4,8.59226961]
[1641756588273,14.35985033,145.5,145.4,8.59226961]
[1641756588274,2.37525446,145.51,145.4,4.19029553]
[1641756588473,2.37525446,145.51,145.4,2.47229553]
[1641756588675,2.37525446,145.51,145.43,3.90438613]
[1641756589274,16.73510479,145.51,145.43,3.90438613]
[1641756590275,16.73510479,145.51,145.44,6.87214377]
[1641756590676,16.73510479,145.51,145.43,3.90438613]
[1641756590875,16.73510479,145.51,145.43,10.77700219]
[1641756591077,2.37525446,145.52,145.43,3.90438613]
[1641756591278,2.37525446,145.52,145.43,5.62238613]
[1641756591676,16.73510479,145.52,145.43,5.62238613]
[1641756592378,16.73510479,145.52,145.45,6.87190764]
[1641756592678,2.37525446,145.52,145.45,13.21690764]
[1641756593077,2.37525446,145.52,145.46,27.66479]
[1641756593677,14.35985033,145.53,145.46,27.66479]
[1641756593880,14.35985033,145.53,145.47,8.58872727]
[1641756594279,14.35985033,145.53,145.47,1.718]
[1641756594479,5.49844105,145.5,145.46,27.66479]
[1641756594879,5.49766322,145.52,145.46,27.66479]
[1641756595081,33.16245322,145.52,145.46,27.66479]
[1641756595280,14.35985033,145.56,145.49,6.86978326]
[1641756595779,2.37525446,145.51,145.49,6.86978326]
[1641756595979,5.446e-05,145.51,145.49,6.86978326]
[1641756596579,38.13470104,145.53,145.49,6.86978326]
[1641756596780,57.22544195,145.61,145.49,6.86978326]
[1641756597078,57.22544195,145.61,145.47,1.718]
[1641756597079,5.49558216,145.58,145.47,1.718]
[1641756597281,5.49558216,145.58,145.47,6.87096331]
[1641756597680,9.49558216,145.58,145.47,6.87096331]
[1641756597887,4.0,145.57,145.47,6.87096331]
[1641756598079,4.0,145.57,145.46,55.32958]
[1641756598080,4.0,145.52,145.46,55.32958]
[1641756598281,4.0,145.49,145.42,1.718]
[1641756598480,4.0,145.49,145.41,14.35985033]
[1641756599081,5.49831576,145.5,145.42,27.66479]
[1641756599282,27.66479,145.51,145.47,3.90391752]
[1641756599481,4.0,145.49,145.47,3.90391752]
[1641756600182,4.0,145.5,145.47,3.90391752]
[1641756600382,27.66479,145.51,145.47,12.98891752]
[1641756601388,31.66479,145.51,145.47,12.98891752]
[1641756601587,91.44259,145.54,145.47,12.98891752]
[1641756601781,27.66479,145.54,145.47,12.98891752]
[1641756601982,38.13470104,145.55,145.47,12.98891752]
[1641756602181,42.13470104,145.55,145.47,12.98891752]
[1641756602383,4.0,145.54,145.47,12.98891752]
[1641756602583,5.49694891,145.54,145.47,12.98891752]
[1641756602782,4.0,145.53,145.47,12.98891752]
[1641756603184,4.0,145.5,145.47,12.98891752]
[1641756603383,4.0,145.53,145.47,3.90391752]
[1641756603585,4.0,145.52,145.43,3.90522108]
[1641756603986,33.16173891,145.54,145.43,3.90522108]
[1641756604185,27.66479,145.54,145.43,5.62322108]
[1641756604685,31.66479,145.54,145.43,5.62322108]
[1641756604885,6.87994496,145.44,145.38,14.35985033]
[1641756605086,27.66479,145.41,145.38,14.35985033]
[1641756605286,4.0,145.49,145.38,14.35985033]
[1641756605485,4.0,145.49,145.39,1.718]
[1641756605986,42.13470104,145.49,145.39,1.718]
[1641756606185,38.13470104,145.49,145.36,1.718]
[1641756606386,42.13470104,145.49,145.36,1.718]
[1641756606588,42.13470104,145.49,145.37,6.8754512]
[1641756606786,4.0,145.49,145.38,1.719]
[1641756607186,27.66479,145.46,145.38,1.719]
[1641756607386,27.66479,145.46,145.37,1.719]
[1641756607586,27.66479,145.46,145.37,5.719]
[1641756607787,27.66479,145.46,145.37,1.719]
[1641756608187,38.13470104,145.52,145.42,6.87332463]
[1641756608387,38.13470104,145.52,145.44,3.90495006]
[1641756608689,38.13470104,145.55,145.44,3.90495006]
[1641756608887,38.13470104,145.55,145.44,10.77709383]
[1641756609092,27.66479,145.54,145.45,27.66479]
[1641756609288,27.66479,145.54,145.45,5.822]
[1641756609689,4.0,145.52,145.45,5.822]
[1641756610090,27.66479,145.54,145.45,5.822]
[1641756610290,3.63468976,145.48,145.45,5.822]
[1641756610491,3.63468976,145.48,145.44,10.77709383]
[1641756610690,3.63468976,145.48,145.45,1.718]
[1641756610890,3.63468976,145.48,145.44,10.77709383]
[1641756611390,3.63468976,145.48,145.45,6.87167153]
[1641756611592,3.63468976,145.48,145.45,16.06567153]
[1641756613290,2.49028976,145.48,145.45,16.06567153]
[1641756614191,27.66479,145.54,145.45,16.06567153]
[1641756614793,3.6324341,145.47,145.45,16.06567153]
[1641756615197,3.6324341,145.47,145.45,6.87167153]
[1641756615401,3.6324341,145.47,145.43,3.90490914]
[1641756615994,7.6324341,145.47,145.43,3.90490914]
[1641756616602,3.6324341,145.47,145.43,3.90490914]
[1641756616803,3.6324341,145.47,145.38,69.3766]
[1641756617002,3.6324341,145.47,145.46,3.90456701]
[1641756617301,58.9620141,145.47,145.46,3.90456701]
[1641756617703,58.9620141,145.47,145.46,13.14756701]
[1641756617905,3.6324341,145.47,145.46,13.14756701]
[1641756618104,3.41e-05,145.47,145.46,13.14756701]
[1641756618903,4.0,145.53,145.46,13.14756701]
[1641756619105,27.66479,145.52,145.46,13.14756701]
[1641756619903,31.66479,145.52,145.46,13.14756701]
[1641756620303,27.66479,145.52,145.46,13.14756701]
[1641756620505,42.23920389,145.52,145.46,13.14756701]
[1641756620706,42.23920389,145.52,145.46,9.243]
[1641756621405,27.66479,145.52,145.46,9.243]
[1641756622012,27.66479,145.52,145.46,13.14789043]
[1641756622406,27.66479,145.52,145.46,17.14789043]
[1641756622605,27.66479,145.52,145.46,13.14789043]
[1641756622806,27.66479,145.52,145.47,1.718]
[1641756623007,27.66479,145.52,145.46,3.90489043]
[1641756623207,31.66479,145.52,145.46,3.90489043]
[1641756623807,4.0,145.51,145.46,3.90489043]
[1641756624207,42.23920389,145.52,145.46,3.90489043]
[1641756624407,42.23920389,145.52,145.46,10.04989043]
[1641756624808,27.66479,145.52,145.46,10.04989043]
[1641756626510,27.66479,145.52,145.46,10.145]
[1641756626711,27.66479,145.54,145.49,6.87001924]